fUSD/lending_fUSD_20260416
["ID","MTS","AMOUNT","RATE_DAILY","PERIOD"]
[420612483,1776339031777,-150.0,9.863e-05,2]
[420612485,1776339031787,-150.0,9.863e-05,2]
[420612487,1776339031796,-150.0,9.863e-05,2]
[420612488,1776339031805,-150.0,9.863e-05,2]
[420612489,1776339031815,-150.0,9.863e-05,2]
[420612490,1776339032257,-150.0,9.891e-05,2]
[420612491,1776339032267,-1177.17793225,9.892e-05,2]
[420612492,1776339032343,-2171.79258427,9.892e-05,2]
[420612493,1776339032355,-390.37271931,9.892e-05,2]
[420612494,1776339032626,-1260.65676417,9.892e-05,2]
[420612495,1776339032635,-1207.40157498,9.892e-05,2]
[420612496,1776339032647,-1623.11679656,9.892e-05,2]
[420612497,1776339032659,-500.0,9.892e-05,2]
[420612498,1776339032677,-1341.0646026,9.892e-05,2]
[420612499,1776339032686,-250.0,9.892e-05,2]
[420612500,1776339032696,-5000.0,9.892e-05,2]
[420612501,1776339032705,-5000.0,9.892e-05,2]
[420612502,1776339032715,-193.0,9.892e-05,2]
[420612503,1776339032724,-458.86719523,9.962e-05,2]
[420612506,1776339039104,-2097.93,9.962e-05,2]
[420612507,1776339039376,-310.92932381,9.962e-05,2]
[420612508,1776339039387,-1405.38534,9.962e-05,2]
[420612509,1776339039399,-8539.3814926,9.962e-05,2]
[420612510,1776339039428,-401.616215,9.962e-05,2]
[420612511,1776339039485,-14822.40043336,9.962e-05,2]
[420612512,1776339039495,-299.99,9.962e-05,2]
[420612513,1776339039504,-268.0,9.962e-05,3]
[420612514,1776339039514,-1680.0,9.986e-05,2]
[420612515,1776339039524,-420.0,9.986e-05,2]
[420612516,1776339039534,-6218.53,9.998e-05,2]
[420612517,1776339039543,-151.0,9.998e-05,2]
[420612518,1776339039552,-174.61919141,9.998e-05,2]
[420612519,1776339039562,-151.0,9.998e-05,2]
[420612520,1776339039572,-9999.99,0.00010003,2]
[420612521,1776339039582,-1192.47,0.00010003,2]
[420612522,1776339039591,-150.99,0.00010003,2]
[420612523,1776339039601,-33068.5791,0.00010004,2]
[420612524,1776339039611,-420.0,0.00010044,2]
[420612525,1776339039620,-150.0,0.00010046,2]
[420612526,1776339039630,-500.0,0.00010046,2]
[420612527,1776339039639,-500.0,0.00010046,2]
[420612528,1776339039649,-500.0,0.00010046,2]
[420612529,1776339039659,-500.0,0.00010046,2]
[420612530,1776339039668,-500.0,0.00010046,2]
[420612531,1776339039678,-500.0,0.00010046,2]
[420612532,1776339039687,-500.0,0.00010046,2]
[420612533,1776339039698,-500.0,0.00010046,2]
[420612534,1776339039707,-500.0,0.00010046,2]
[420612535,1776339039717,-500.0,0.00010046,2]
[420612536,1776339039726,-500.0,0.00010046,2]
[420612537,1776339039735,-500.0,0.00010046,2]
[420612538,1776339039745,-500.0,0.00010046,2]
[420612539,1776339039754,-500.0,0.00010046,2]
[420612541,1776339039763,-500.0,0.00010046,2]
[420612543,1776339039773,-567.73750962,0.00010046,2]
[420612545,1776339039783,-500.0,0.00010046,2]
[420612547,1776339039793,-500.0,0.00010046,2]
[420612549,1776339039802,-150.0,0.00010046,2]
[420612551,1776339039811,-500.0,0.00010046,2]
[420612553,1776339039821,-500.0,0.00010046,2]
[420612555,1776339039830,-432.63844244,0.00010046,2]
[420612557,1776339039839,-500.0,0.00010046,2]
[420612560,1776339039849,-150.0,0.00010046,2]
[420612561,1776339039859,-500.0,0.00010046,2]
[420612564,1776339039869,-500.0,0.00010046,2]
[420612566,1776339039878,-500.0,0.00010046,2]
[420612568,1776339039887,-500.0,0.00010046,2]
[420612570,1776339039897,-151.0,0.00010053,2]
[420612572,1776339039906,-161.28,0.00010107,2]
[420612574,1776339039915,-151.0,0.00010108,2]
[420612576,1776339039925,-150.0,0.00010146,2]
[420612578,1776339039934,-150.0,0.00010146,2]
[420612580,1776339039944,-150.0,0.00010146,2]
[420612582,1776339039953,-181.15912155,0.00010146,2]
[420612584,1776339039963,-500.0,0.00010146,2]
[420612586,1776339039972,-500.0,0.00010146,2]
[420612588,1776339039982,-599.19493516,0.00010146,2]
[420612590,1776339039991,-500.0,0.00010146,2]
[420612592,1776339040000,-500.0,0.00010146,2]
[420612594,1776339040010,-500.0,0.00010146,2]
[420612596,1776339040020,-377.35894625,0.00010146,2]
[420612598,1776339040030,-217.47375693,0.00010146,2]
[420612599,1776339040039,-500.0,0.00010146,2]
[420612601,1776339040048,-500.0,0.00010146,2]
[420612603,1776339040057,-500.0,0.00010146,2]
[420612605,1776339040067,-500.0,0.00010146,2]
[420612608,1776339040077,-448.20465172,0.00010146,2]
[420612686,1776339041752,-51.79534828,0.00010146,2]
[420612687,1776339041761,-400.93133683,0.00010146,2]
[420612688,1776339041809,-99.06866317,0.00010146,2]
[420612689,1776339041818,-500.0,0.00010146,2]
[420612690,1776339041827,-500.0,0.00010146,2]
[420612691,1776339041837,-500.0,0.00010146,2]
[420612692,1776339041852,-268.95077272,0.00010146,2]
[420612693,1776339041868,-500.0,0.00010146,2]
[420612694,1776339041877,-2000.0,0.00010214,2]
[420612695,1776339041887,-160.0,0.00010226,2]
[420612696,1776339041897,-150.0,0.00010228,2]
[420612697,1776339041907,-3908.539,0.0001032,2]
[420612698,1776339041918,-150.0,0.0001032,2]
[420612699,1776339041928,-150.0,0.0001032,2]
[420612700,1776339041937,-150.0,0.0001032,2]
[420612701,1776339041946,-200.0,0.0001032,2]
[420612702,1776339041955,-1265.0,0.00010341,2]
[420612703,1776339041965,-409.761,0.00010341,2]
[420612704,1776339041974,-1348.0,0.00010341,2]
[420612705,1776339041984,-2473.0,0.00010341,2]
[420612706,1776339041995,-273.443,0.00010341,2]
[420612707,1776339042005,-188.85041168,0.00010342,2]
[420612708,1776339042014,-150.0,0.00010411,2]
[420612709,1776339042025,-350.0,0.00010449,2]
[420612710,1776339042034,-500.0,0.00010466,2]
[420612711,1776339042044,-719.59,0.00010488,2]
[420612712,1776339042054,-2500.0,0.000105,2]
[420612713,1776339042063,-156.587,0.00010546,2]
[420612714,1776339042073,-181.08010149,0.00010546,2]
[420612715,1776339042292,-500.0,0.00010573,2]
[420612716,1776339042302,-250.0,0.00010585,2]
[420612717,1776339042311,-1666.66667,0.0001059,2]
[420612718,1776339042320,-1666.66666,0.0001059,2]
[420612719,1776339042330,-150.0,0.00010594,2]
[420612720,1776339042339,-151.0,0.00010594,2]
[420612721,1776339042348,-151.0,0.00010594,2]
[420612722,1776339042358,-151.0,0.00010594,2]
[420612723,1776339042367,-151.0,0.00010594,2]
[420612724,1776339042376,-721.12765535,0.00010594,2]
[420612725,1776339042386,-97.35289278,0.00010594,2]
[420612726,1776339042399,-102.64710722,0.00010594,2]
[420612728,1776339042408,-151.0,0.00010594,2]
[420612730,1776339042418,-151.0,0.00010594,2]
[420612731,1776339042427,-56.74067204,0.00010594,2]
[420612735,1776339042475,-94.25932796,0.00010594,2]
[420612736,1776339042485,-151.0,0.00010594,2]
[420612737,1776339042495,-151.0,0.00010594,2]
[420612738,1776339042504,-151.0,0.00010594,2]
[420612739,1776339042513,-151.0,0.00010594,2]
[420612740,1776339042523,-245.52866204,0.00010594,2]
[420612741,1776339042606,-102.25524587,0.00010594,2]
[420612742,1776339042615,-178.87099263,0.00010594,2]
[420612747,1776339045612,-5149.89806056,0.00010147,2]
[420612748,1776339045690,-603.37735071,0.00010147,2]
[420612749,1776339045715,-273.51085049,0.00010147,2]
[420612750,1776339045727,-1.21373824,0.00010147,2]
[420612751,1776339045737,-321.12900737,0.00010594,2]
[420612752,1776339045747,-35.79797859,0.00010594,2]
[420612753,1776339045777,-464.20202141,0.00010594,2]
[420612754,1776339045787,-500.0,0.00010594,2]
[420612755,1776339045796,-70.88187174,0.00010594,2]
[420612756,1776339045929,-429.11812826,0.00010594,2]
[420612757,1776339045939,-500.0,0.00010594,2]
[420612758,1776339045949,-500.0,0.00010594,2]
[420612759,1776339045959,-500.0,0.00010594,2]
[420612760,1776339045969,-500.0,0.00010594,2]
[420612761,1776339045979,-500.0,0.00010594,2]
[420612762,1776339045990,-1386.78395259,0.00010594,2]
[420612763,1776339046001,-233.13599766,0.000106,2]
[420612764,1776339046014,-73.86400234,0.000106,2]
[420612765,1776339046024,-1000.0,0.000106,2]
[420612766,1776339046034,-313.0,0.000106,2]
[420612767,1776339046044,-1666.66667,0.0001061,2]
[420612768,1776339046054,-1666.66666,0.0001064,2]
[420612769,1776339046064,-500.0,0.00010673,2]
[420612770,1776339046074,-311.88887855,0.00010673,2]
[420612771,1776339046084,-500.0,0.00010673,2]
[420612772,1776339046094,-500.0,0.00010673,2]
[420612773,1776339046104,-500.0,0.00010673,2]
[420612774,1776339046114,-500.0,0.00010673,2]
[420612775,1776339046124,-501.29543413,0.00010673,2]
[420612776,1776339046133,-500.0,0.00010673,2]
[420612778,1776339046144,-75568.054334,0.00010684,2]
[420612779,1776339046155,-294.36729522,0.00010684,2]
[420612785,1776340177129,-241.0,8.792e-05,3]
[420612786,1776340177154,-250.0,8.847e-05,2]
[420612787,1776340177181,-264.0,8.847e-05,2]
[420612788,1776340177209,-1600.0,8.874e-05,2]
[420612789,1776340177234,-4678.17,8.891e-05,2]
[420612790,1776340177260,-300.0,8.9e-05,2]
[420612791,1776340177285,-1200.0,8.9e-05,2]
[420612792,1776340177310,-466.83,8.901e-05,2]
[420612889,1776340232900,-229.0,8.792e-05,3]
[420612891,1776340232910,-250.0,8.846e-05,2]
[420612894,1776340232921,-1200.0,8.9e-05,2]
[420612896,1776340232931,-165.0,8.901e-05,2]
[420612898,1776340232940,-7891.98,8.901e-05,2]
[420612900,1776340232950,-300.0,9.344e-05,2]
[420612902,1776340232960,-300.0,9.344e-05,2]
[420612904,1776340232969,-300.0,9.344e-05,2]
[420612906,1776340232978,-152.97726268,9.345e-05,2]
[420612908,1776340232988,-153.8774472,9.345e-05,2]
[420612909,1776340232997,-150.0,9.345e-05,2]
[420612911,1776340233007,-150.0,9.345e-05,2]
[420612913,1776340233016,-150.00000001,9.345e-05,2]
[420612915,1776340233025,-150.0,9.345e-05,2]
[420612917,1776340233034,-150.0,9.345e-05,2]
[420612920,1776340233045,-150.0,9.345e-05,2]
[420612922,1776340233054,-165.14,9.44e-05,2]
[420612924,1776340233063,-400.0,9.6e-05,3]
[420612926,1776340233072,-250.36715048,9.654e-05,2]
[420612928,1776340233081,-250.0,9.671e-05,2]
[420612930,1776340233090,-193.0,9.671e-05,2]
[420612932,1776340233100,-250.0,9.671e-05,2]
[420612934,1776340233109,-800.0,9.7e-05,3]
[420612936,1776340233118,-5018.71878087,9.73e-05,2]
[420612938,1776340233127,-229.0,9.771e-05,3]
[420612940,1776340233137,-1680.0,9.79e-05,2]
[420612942,1776340233146,-1300.0,9.8e-05,3]
[420612944,1776340233155,-2500.0,9.803e-05,2]
[420612946,1776340233164,-500.0,9.806e-05,2]
[420612948,1776340233174,-150.0,9.858e-05,2]
[420612950,1776340233183,-9999.99,9.859e-05,2]
[420612952,1776340233192,-999.99,9.859e-05,2]
[420612954,1776340233202,-4911.93618107,9.859e-05,2]
[420612957,1776340233221,-88.05381893,9.859e-05,2]
[420612959,1776340233230,-2309.0,9.859e-05,2]
[420612961,1776340233239,-153.79322456,9.873e-05,2]
[420612963,1776340233248,-500.0,9.883e-05,2]
[420612965,1776340233257,-500.0,9.883e-05,2]
[420612967,1776340233265,-500.0,9.883e-05,2]
[420612968,1776340233275,-171.62,9.887e-05,2]
[420612969,1776340233285,-1700.0,9.9e-05,3]
[420612970,1776340233295,-500.0,9.902e-05,2]
[420612971,1776340233304,-155.0,9.902e-05,2]
[420612972,1776340233313,-172.7078805,9.902e-05,2]
[420612973,1776340233323,-500.0,9.902e-05,2]
[420612974,1776340233332,-500.0,9.902e-05,2]
[420612975,1776340233342,-500.0,9.902e-05,2]
[420612976,1776340233351,-500.0,9.902e-05,2]
[420612977,1776340233361,-500.0,9.902e-05,2]
[420612978,1776340233370,-500.0,9.902e-05,2]
[420612979,1776340233379,-500.0,9.902e-05,2]
[420612980,1776340233389,-500.0,9.902e-05,2]
[420612981,1776340233398,-500.0,9.902e-05,2]
[420612982,1776340233407,-500.0,9.902e-05,2]
[420612983,1776340233416,-500.0,9.902e-05,2]
[420612984,1776340233426,-500.0,9.902e-05,2]
[420612985,1776340233435,-500.0,9.902e-05,2]
[420612986,1776340233444,-500.0,9.902e-05,2]
[420612987,1776340233453,-219.66759366,9.902e-05,2]
[420612988,1776340233463,-500.0,9.902e-05,2]
[420612989,1776340233473,-500.0,9.902e-05,2]
[420612990,1776340233482,-500.0,9.902e-05,2]
[420612991,1776340233492,-500.0,9.902e-05,2]
[420612992,1776340233501,-500.0,9.902e-05,2]
[420612993,1776340233510,-500.0,9.902e-05,2]
[420612994,1776340233520,-500.0,9.902e-05,2]
[420612995,1776340233530,-500.0,9.902e-05,2]
[420612996,1776340233539,-500.0,9.902e-05,2]
[420612997,1776340233549,-207.25979919,9.902e-05,2]
[420612998,1776340233558,-500.0,9.902e-05,2]
[420612999,1776340233568,-260.06743709,9.902e-05,2]
[420613000,1776340233578,-500.0,9.902e-05,2]
[420613001,1776340233587,-500.0,9.902e-05,2]
[420613002,1776340233597,-500.0,9.902e-05,2]
[420613003,1776340233607,-500.0,9.902e-05,2]
[420613004,1776340233617,-500.0,9.902e-05,2]
[420613005,1776340233627,-304.50821573,9.902e-05,2]
[420613006,1776340233636,-500.0,9.902e-05,2]
[420613007,1776340233646,-500.0,9.902e-05,2]
[420613008,1776340233655,-418.71665123,9.902e-05,2]
[420613009,1776340233665,-207.16483834,9.902e-05,2]
[420613010,1776340233674,-150.0,9.902e-05,2]
[420613011,1776340233684,-150.0,9.902e-05,2]
[420613012,1776340233694,-300.0,9.902e-05,2]
[420613013,1776340233703,-647.43521935,9.902e-05,2]
[420613014,1776340233712,-647.43521935,9.902e-05,2]
[420613015,1776340233722,-647.43521935,9.902e-05,2]
[420613016,1776340233731,-647.43521935,9.902e-05,2]
[420613017,1776340233741,-647.43521935,9.902e-05,2]
[420613018,1776340233750,-647.43521935,9.902e-05,2]
[420613019,1776340233760,-647.43521935,9.902e-05,2]
[420613020,1776340233770,-647.43521935,9.902e-05,2]
[420613021,1776340233779,-647.43521935,9.902e-05,2]
[420613022,1776340233789,-647.43521935,9.902e-05,2]
[420613023,1776340233799,-647.43521935,9.902e-05,2]
[420613024,1776340233808,-647.43521935,9.902e-05,2]
[420613025,1776340233818,-647.43521935,9.902e-05,2]
[420613026,1776340233827,-647.43521935,9.902e-05,2]
[420613027,1776340233837,-647.43521935,9.902e-05,2]
[420613028,1776340233847,-647.43521935,9.902e-05,2]
[420613029,1776340233857,-647.43521935,9.902e-05,2]
[420613030,1776340233867,-647.43521935,9.902e-05,2]
[420613031,1776340233877,-647.43521935,9.902e-05,2]
[420613032,1776340233886,-647.43521935,9.902e-05,2]
[420613033,1776340233899,-647.43521935,9.902e-05,2]
[420613034,1776340233908,-647.43521935,9.902e-05,2]
[420613035,1776340233917,-500.0,9.902e-05,2]
[420613036,1776340233926,-500.0,9.902e-05,2]
[420613037,1776340233936,-294.8704387,9.902e-05,2]
[420613038,1776340233946,-647.43521935,9.902e-05,2]
[420613039,1776340233956,-647.43521935,9.902e-05,2]
[420613040,1776340233965,-647.43521935,9.902e-05,2]
[420613041,1776340233976,-599.66,9.903e-05,2]
[420613042,1776340233985,-180331.49055824,9.903e-05,2]
[420613043,1776340233999,-18908.05128021,9.903e-05,2]
[420613044,1776340234012,-63011.61514959,9.903e-05,2]
[420613045,1776340234023,-51590.61243023,9.903e-05,2]
[420613046,1776340234034,-2247.63760254,9.903e-05,2]
[420613047,1776340234053,-18158.61043862,9.903e-05,2]
[420613048,1776340234072,-2012.78354579,9.903e-05,2]
[420613049,1776340234083,-473.27,9.903e-05,2]
[420613076,1776340240635,-559.34949438,9.903e-05,2]
[420613077,1776340240818,-851.86095555,9.903e-05,2]
[420613089,1776340244878,-1548.88375125,9.903e-05,2]
[420613090,1776340244922,-3467.16711823,9.903e-05,2]
[420613091,1776340246238,-5995.2866158,9.903e-05,2]
[420613092,1776340246292,-565.6000001,9.903e-05,2]
[420613093,1776340246304,-4393.3816914,9.903e-05,2]
[420613094,1776340246315,-1261.267356,9.903e-05,2]
[420613095,1776340246327,-11816.89741545,9.903e-05,2]
[420613097,1776340263079,684.0,0.000165,120]
[420613098,1776340277432,10000.0,8.306e-05,2]
[420613099,1776340287440,0.01,8.306e-05,2]
[420613100,1776340287465,9999.99,8.306e-05,2]
[420613101,1776340294780,0.02,8.306e-05,2]
[420613102,1776340294802,9999.98,8.306e-05,2]
[420613103,1776340301541,0.03,8.306e-05,2]
[420613104,1776340301563,9999.97,8.306e-05,2]
[420613105,1776340308077,0.04,8.306e-05,2]
[420613106,1776340308100,9999.96,8.306e-05,2]
[420613107,1776340316168,0.05,8.306e-05,2]
[420613108,1776340316191,9999.95,8.306e-05,2]
[420613109,1776340325467,0.06,8.306e-05,3]
[420613110,1776340325491,151.94,8.306e-05,3]
[420613111,1776340325795,9848.07,8.306e-05,2]
[420613112,1776340325819,151.93,8.306e-05,2]
[420613113,1776340341730,5198.27,8.306e-05,2]
[420613114,1776340388096,152.0,8.306e-05,3]
[420613115,1776340448405,152.0,8.306e-05,3]
[420613116,1776340509449,152.0,8.306e-05,3]
[420613117,1776340566521,152.0,8.306e-05,3]
[420613118,1776340626863,152.0,8.306e-05,3]
[420613119,1776340685407,152.0,8.306e-05,3]
[420613120,1776340747345,153.0,8.306e-05,3]
[420613122,1776340903374,-206.0,8.323e-05,3]
[420613123,1776340903396,-794.0,8.902e-05,2]
[420613124,1776340904666,-1000.0,8.902e-05,2]
[420613125,1776340907754,-58.42,8.902e-05,2]
[420613126,1776340907776,-309.33724021,8.903e-05,2]
[420613127,1776340907797,-206.0,9.043e-05,3]
[420613128,1776340907820,-200.0,9.076e-05,2]
[420613129,1776340907844,-152.0,9.165e-05,7]
[420613130,1776340907866,-74.24275979,9.192e-05,2]
[420613131,1776340909217,-175.75724021,9.192e-05,2]
[420613132,1776340909241,-824.24275979,9.219e-05,2]
[420613133,1776340910236,-1000.0,9.219e-05,2]
[420613134,1776340911122,-753.24724021,9.219e-05,2]
[420613135,1776340911148,-246.75275979,9.48e-05,2]
[420613136,1776340911943,-3.24724021,9.48e-05,2]
[420613137,1776340911967,-996.75275979,9.605e-05,2]
[420613138,1776340912367,-203.24724021,9.605e-05,2]
[420613139,1776340912391,-300.0,9.605e-05,2]
[420613140,1776340912415,-300.0,9.605e-05,2]
[420613141,1776340912439,-196.75275979,9.606e-05,2]
[420613142,1776340912728,-803.24724021,9.606e-05,2]
[420613143,1776340912752,-196.75275979,9.606e-05,2]
[420613144,1776340913149,-1000.0,9.606e-05,2]
[420613145,1776340913576,-1000.0,9.606e-05,2]
[420613146,1776340913986,-303.24724021,9.606e-05,2]
[420613147,1776340914010,-151.0,9.703e-05,2]
[420613148,1776340914034,-150.0,9.705e-05,2]
[420613149,1776340914061,-395.75275979,9.706e-05,2]
[420613150,1776340914330,-1000.0,9.706e-05,2]
[420613151,1776340914806,-1000.0,9.706e-05,2]
[420613152,1776340915137,-1000.0,9.706e-05,2]
[420613153,1776340915586,-1000.0,9.706e-05,2]
[420613154,1776340915940,-1000.0,9.706e-05,2]
[420613155,1776340916373,-1000.0,9.706e-05,2]
[420613156,1776340916765,-1000.0,9.706e-05,2]
[420613157,1776340917105,-1000.0,9.706e-05,2]
[420613158,1776340917536,-1000.0,9.706e-05,2]
[420613159,1776340919587,-1000.0,9.706e-05,2]
[420613160,1776340919636,-1000.0,9.706e-05,2]
[420613161,1776340919691,-1000.0,9.706e-05,2]
[420613162,1776340919744,-1000.0,9.706e-05,2]
[420613163,1776340919789,-1000.0,9.706e-05,2]
[420613164,1776340920726,-1000.0,9.706e-05,2]
[420613165,1776340921165,-1000.0,9.706e-05,2]
[420613166,1776340921593,-1000.0,9.706e-05,2]
[420613167,1776340922031,-1000.0,9.706e-05,2]
[420613168,1776340922442,-1000.0,9.706e-05,2]
[420613169,1776340922871,-1000.0,9.706e-05,2]
[420613170,1776340923342,-1000.0,9.706e-05,2]
[420613171,1776340923814,-1000.0,9.706e-05,2]
[420613172,1776340924153,-1000.0,9.706e-05,2]
[420613173,1776340924633,-1000.0,9.706e-05,2]
[420613174,1776340925656,-1000.0,9.706e-05,2]
[420613175,1776340925744,-1000.0,9.706e-05,2]
[420613176,1776340925830,-1000.0,9.706e-05,2]
[420613177,1776340926249,-1000.0,9.706e-05,2]
[420613178,1776340927651,-1000.0,9.706e-05,2]
[420613179,1776340928074,-1000.0,9.706e-05,2]
[420613180,1776340928519,-1000.0,9.706e-05,2]
[420613181,1776340928821,-1000.0,9.706e-05,2]
[420613182,1776340940986,-1000.0,9.706e-05,2]
[420613183,1776340945843,-1000.0,9.706e-05,2]
[420613184,1776340950100,-1000.0,9.706e-05,2]
[420613185,1776340951531,-1000.0,9.706e-05,2]
[420613186,1776340953141,-1000.0,9.706e-05,2]
[420613187,1776340964346,-1250.0,9.706e-05,2]
[420613188,1776341089571,1780.07,0.000164,120]
[420613189,1776341278732,1602.07,0.000164,120]
[420613191,1776341432173,-226.81,8.988e-05,3]
[420613192,1776341432184,-250.0,9.012e-05,2]
[420613193,1776341432194,-249.17,9.036e-05,2]
[420613194,1776341432204,-150.0,9.247e-05,2]
[420613195,1776341432213,-183.56823947,9.247e-05,2]
[420613196,1776341432223,-166.7115518,9.295e-05,2]
[420613197,1776341432232,-500.0,9.583e-05,2]
[420613198,1776341432242,-500.0,9.583e-05,2]
[420613199,1776341432252,-500.0,9.583e-05,2]
[420613200,1776341432262,-500.0,9.583e-05,2]
[420613201,1776341432271,-302.10287384,9.583e-05,2]
[420613202,1776341432281,-500.0,9.583e-05,2]
[420613203,1776341432291,-150.0,9.595e-05,2]
[420613204,1776341432301,-300.0,9.595e-05,2]
[420613205,1776341432310,-300.0,9.595e-05,2]
[420613206,1776341432320,-1200.0,9.595e-05,2]
[420613207,1776341432329,-76209.6178,9.596e-05,2]
[420613208,1776341432338,-300.0,9.6e-05,3]
[420613209,1776341432348,-571.264738,9.605e-05,2]
[420613210,1776341432357,-500.0,9.605e-05,2]
[420613211,1776341432367,-500.0,9.605e-05,2]
[420613212,1776341432376,-466.17968577,9.605e-05,2]
[420613213,1776341432385,-311.61202397,9.605e-05,2]
[420613214,1776341432395,-500.0,9.605e-05,2]
[420613215,1776341432404,-500.0,9.605e-05,2]
[420613216,1776341432414,-500.0,9.605e-05,2]
[420613217,1776341432423,-500.0,9.605e-05,2]
[420613218,1776341432433,-500.0,9.605e-05,2]
[420613219,1776341432444,-635.72104091,9.605e-05,2]
[420613220,1776341432454,-1000.0,9.606e-05,2]
[420613221,1776341432463,-84016.64060164,9.606e-05,2]
[420613222,1776341432475,-13953.72283577,9.606e-05,2]
[420613223,1776341432493,-633.52916221,9.606e-05,2]
[420613224,1776341432504,-3767.97201217,9.606e-05,2]
[420613225,1776341432530,-789.06159669,9.606e-05,2]
[420613227,1776341438328,-1335.68020852,9.606e-05,2]
[420613228,1776341438381,-598211.744783,9.606e-05,2]
[420613229,1776341438391,-2500.0,9.606e-05,2]
[420613230,1776341438400,-29478.5560539,9.696e-05,2]
[420613231,1776341438410,-6070.5010781,9.696e-05,2]
[420613232,1776341438419,-600.0,9.7e-05,3]
[420613233,1776341438429,-500.0,9.706e-05,2]
[420613234,1776341438439,-952.12,9.762e-05,2]
[420613235,1776341438448,-900.0,9.8e-05,3]
[420613236,1776341438457,-250.0,9.887e-05,2]
[420613237,1776341438466,-1200.0,9.9e-05,3]
[420613238,1776341438475,-135317.9249772,9.903e-05,2]
[420613239,1776341438485,-8187.7768878,9.903e-05,2]
[420613240,1776341438494,-151.0,9.903e-05,2]
[420613241,1776341438504,-1147.3081987,9.903e-05,2]
[420613242,1776341438513,-59804.2459764,9.903e-05,2]
[420613243,1776341438522,-151.0,9.903e-05,2]
[420613244,1776341438531,-151.0,9.903e-05,2]
[420613245,1776341438540,-151.0,9.903e-05,2]
[420613246,1776341438549,-151.0,9.903e-05,2]
[420613247,1776341438558,-179.061945,9.903e-05,2]
[420613248,1776341438568,-151.0,9.903e-05,2]
[420613249,1776341438578,-151.0,9.903e-05,2]
[420613250,1776341438587,-211.208368,9.903e-05,2]
[420613251,1776341438596,-211.208368,9.903e-05,2]
[420613252,1776341438606,-211.208368,9.903e-05,2]
[420613253,1776341438615,-211.208368,9.903e-05,2]
[420613254,1776341438624,-211.208368,9.903e-05,2]
[420613255,1776341438634,-211.208368,9.903e-05,2]
[420613256,1776341438643,-211.208368,9.903e-05,2]
[420613257,1776341438653,-211.208368,9.903e-05,2]
[420613258,1776341438662,-197.183994,9.903e-05,2]
[420613259,1776341438673,-197.183994,9.903e-05,2]
[420613260,1776341438682,-197.183994,9.903e-05,2]
[420613261,1776341438692,-197.183994,9.903e-05,2]
[420613262,1776341438702,-197.183994,9.903e-05,2]
[420613263,1776341438711,-197.183994,9.903e-05,2]
[420613264,1776341438720,-197.183994,9.903e-05,2]
[420613265,1776341438730,-197.183994,9.903e-05,2]
[420613266,1776341438740,-578.20924308,9.976e-05,2]
[420613267,1776341438749,-1428.38747117,9.976e-05,2]
[420613268,1776341438759,-200.0,9.976e-05,2]
[420613269,1776341438769,-217.15233878,9.976e-05,2]
[420613270,1776341438778,-721.12765535,9.976e-05,2]
[420613271,1776341438787,-500.0,9.976e-05,2]
[420613272,1776341438797,-151.0,9.976e-05,2]
[420613273,1776341438807,-265.72402818,9.976e-05,2]
[420613274,1776341438815,-500.0,9.976e-05,2]
[420613275,1776341438823,-500.0,9.976e-05,2]
[420613276,1776341438832,-151.0,9.976e-05,2]
[420613277,1776341438841,-500.0,9.976e-05,2]
[420613278,1776341438850,-500.0,9.976e-05,2]
[420613279,1776341438859,-500.0,9.976e-05,2]
[420613280,1776341438868,-500.0,9.976e-05,2]
[420613281,1776341438877,-174.61919141,9.976e-05,2]
[420613282,1776341438886,-500.0,9.976e-05,2]
[420613283,1776341438895,-500.0,9.976e-05,2]
[420613284,1776341438905,-500.0,9.976e-05,2]
[420613285,1776341438915,-500.0,9.976e-05,2]
[420613286,1776341438924,-500.0,9.976e-05,2]
[420613287,1776341438933,-351.10202813,9.976e-05,2]
[420613288,1776341438943,-1500.0,9.978e-05,2]
[420613289,1776341438952,-1600.0,9.983e-05,2]
[420613290,1776341438962,-154.20776911,0.0001,2]